bitfinex/quotes_BTCUSD_20220226
["timestamp","ask_amount","ask_price","bid_price","bid_amount"]
[1645871886609,0.54791098,38998.0,38997.0,0.0002848]
[1645871887008,0.54791098,38998.0,38995.0,0.064151]
[1645871887009,0.10879,38997.0,38995.0,0.064151]
[1645871887210,0.10879,38997.0,38996.0,0.0002848]
[1645871887910,0.172942,38997.0,38996.0,0.0002848]
[1645871888110,0.172942,38997.0,38994.0,0.064153]
[1645871888309,0.064152,38997.0,38995.0,0.00028481]
[1645871888810,0.067152,38997.0,38995.0,0.00028481]
[1645871889012,0.067152,38997.0,38995.0,0.06443581]
[1645871889510,0.10879,38996.0,38995.0,0.064151]
[1645871889710,0.067152,38997.0,38994.0,0.04519082]
[1645871889911,0.067152,38997.0,38994.0,0.10934382]
[1645871890157,0.064152,38997.0,38994.0,0.10934382]
[1645871890359,0.064152,38997.0,38994.0,0.10434382]
[1645871890555,0.10879,38996.0,38994.0,0.064153]
[1645871890756,0.064152,38997.0,38994.0,0.06443782]
[1645871891157,0.43911498,38998.0,38994.0,0.06443782]
[1645871891459,0.05,38998.0,38994.0,0.36443782]
[1645871891857,0.05,38998.0,38994.0,0.364153]
[1645871892056,0.05,38998.0,38994.0,0.3644378]
[1645871892256,0.064146,38997.0,38994.0,0.4093438]
[1645871892460,0.064146,38997.0,38995.0,0.06415]
[1645871892861,0.064146,38997.0,38994.0,0.3451908]
[1645871892862,0.10879,38996.0,38994.0,0.3451908]
[1645871893058,0.05,38997.0,38994.0,0.344906]
[1645871893257,0.05,38997.0,38994.0,0.3451908]
[1645871893901,0.06415,38996.0,38994.0,0.3451908]
[1645871894206,0.06415,38996.0,38994.0,0.409056]
[1645871894702,0.06715,38996.0,38995.0,0.00260574]
[1645871894903,0.06715,38996.0,38994.0,0.40666174]
[1645871895505,0.06268237,38996.0,38994.0,0.40666174]
[1645871896102,0.05968237,38996.0,38994.0,0.40666174]
[1645871898859,0.06268237,38996.0,38994.0,0.40666174]
[1645871899359,0.06268237,38996.0,38994.0,0.06415]
[1645871899762,0.06443358,38996.0,38994.0,0.06415]
[1645871899960,0.06143358,38996.0,38994.0,0.06415]
[1645871901412,0.06143358,38996.0,38994.0,0.36415]
[1645871902010,0.00175121,38996.0,38994.0,0.36415]
[1645871903010,0.06589821,38996.0,38994.0,0.36415]
[1645871904212,0.0659239,38996.0,38994.0,0.06415]
[1645871904613,0.064154,38995.0,38993.0,0.06136831]
[1645871904813,0.0057769,38996.0,38995.0,0.128308]
[1645871905662,0.1340879,38996.0,38995.0,0.128308]
[1645871906061,0.1300879,38996.0,38995.0,0.128308]
[1645871906760,0.1330879,38996.0,38995.0,0.128308]
[1645871908162,0.1300879,38996.0,38995.0,0.128308]
[1645871908763,0.1330879,38996.0,38995.0,0.128308]
[1645871909807,0.003,38996.0,38995.0,0.128308]
[1645871910007,0.38912598,38997.0,38995.0,0.128308]
[1645871912008,0.38912598,38997.0,38995.0,0.192457]
[1645871912657,0.064155,38997.0,38995.0,0.237361]
[1645871913358,0.38912598,38997.0,38995.0,0.237361]
[1645871914561,0.32497098,38997.0,38996.0,0.3]
[1645871914860,0.32497098,38998.0,38997.0,0.377205]
[1645871915060,0.32497098,38999.0,38997.0,0.677205]
[1645871915260,0.32497098,38999.0,38997.0,0.044899]
[1645871915462,0.32497098,39000.0,38998.0,0.3]
[1645871915761,0.38911298,38999.0,38998.0,0.3]
[1645871915960,0.38911298,38999.0,38998.0,0.677205]
[1645871916609,0.38911298,38999.0,38998.0,0.741348]
[1645871917709,0.064142,38999.0,38998.0,0.741348]
[1645871918109,0.064142,38999.0,38998.0,0.364143]
[1645871918309,0.38911298,38999.0,38998.0,0.741348]
[1645871918509,0.38911298,38999.0,38998.0,0.364143]
[1645871918909,0.39211298,38999.0,38998.0,0.364143]
[1645871919111,0.36657436,39001.0,38998.0,0.464143]
[1645871919311,0.36657436,39001.0,38998.0,0.764143]
[1645871919712,0.36657436,39001.0,38998.0,0.4644278]
[1645871919913,0.064146,39000.0,38998.0,0.0002848]
[1645871920155,0.114146,39000.0,38998.0,0.0002848]
[1645871920359,0.064146,39000.0,38998.0,0.0002848]
[1645871920559,0.06415114,39000.0,38995.0,0.128308]
[1645871920758,0.128305,38999.0,38997.0,0.0002848]
[1645871921758,0.128305,38999.0,38995.0,0.128308]
[1645871921759,0.128305,38999.0,38995.0,0.428308]
[1645871921960,0.128305,38999.0,38996.0,0.0002848]
[1645871922961,0.128305,38999.0,38995.0,0.128308]
[1645871923261,0.128305,38999.0,38996.0,0.0002848]
[1645871924311,0.128305,38999.0,38995.0,0.1893915]
[1645871924506,0.138305,38999.0,38996.0,0.0002848]
[1645871925409,0.138305,38999.0,38995.0,0.4893915]
[1645871925609,0.138305,38999.0,38996.0,0.4865408]
[1645871925810,0.138305,38999.0,38996.0,0.1093358]
[1645871926211,0.37935268,38998.0,38996.0,0.0644328]
[1645871926416,0.44350268,38998.0,38996.0,0.0644328]
[1645871926611,0.44350268,38998.0,38996.0,0.064148]
[1645871926810,0.44550268,38998.0,38996.0,0.064148]
[1645871927012,0.44550268,38998.0,38995.0,0.5538263]
[1645871927214,0.32516139,38996.0,38995.0,0.1927428]
[1645871927412,0.38931339,38996.0,38995.0,0.5057978]
[1645871927856,0.38931339,38996.0,38995.0,0.505513]
[1645871928656,0.38931339,38996.0,38995.0,0.805513]
[1645871928860,0.39231339,38996.0,38995.0,0.805513]
[1645871929266,0.32816139,38996.0,38995.0,0.805513]
[1645871929459,0.003,38996.0,38995.0,0.805513]
[1645871930057,0.33516139,38999.0,38995.0,0.805513]
[1645871930260,0.01,38999.0,38996.0,0.5496387]
[1645871930460,0.01,38999.0,38998.0,0.377205]
[1645871930660,0.01,38999.0,38998.0,0.7382885]
[1645871932818,0.01,38999.0,38998.0,0.7392885]
[1645871933517,0.32516139,39002.0,38999.0,0.06413198]
[1645871933716,0.32516139,39003.0,39001.0,0.0610835]
[1645871933915,0.32516139,39003.0,39002.0,0.89236501]
[1645871934117,0.32516139,39003.0,39002.0,0.59236501]
[1645871935261,0.32516139,39003.0,39002.0,0.89236501]
[1645871937561,0.32516139,39004.0,39002.0,0.89236501]
[1645871937760,0.32516139,39004.0,39003.0,0.74140328]
[1645871940407,0.32516139,39004.0,39003.0,0.44140328]
[1645871941008,0.32516139,39004.0,39003.0,0.377271]
[1645871942510,0.064133,39005.0,39003.0,0.377271]
[1645871942760,0.44348568,39005.0,39003.0,0.109029]
[1645871942959,0.08,39004.0,39003.0,0.044894]
[1645871943165,0.08,39004.0,39003.0,0.422165]
[1645871943460,0.08,39004.0,39003.0,0.377271]
[1645871943661,0.08,39004.0,39002.0,7.034e-05]
[1645871943662,0.52349568,39004.0,39002.0,7.034e-05]
[1645871943861,0.14402525,39003.0,39002.0,7.034e-05]
[1645871944060,0.19542525,39003.0,39002.0,7.034e-05]
[1645871944260,0.62804323,39003.0,39002.0,7.034e-05]
[1645871944663,0.62773461,39003.0,39002.0,7.034e-05]
[1645871944866,0.62873461,39003.0,39002.0,7.034e-05]
[1645871945261,0.19611663,39003.0,39002.0,7.034e-05]
[1645871945461,0.19611663,39003.0,38995.0,0.128308]
[1645871945661,0.08,38997.0,38995.0,0.128308]
[1645871945861,0.40504449,38997.0,38995.0,0.128308]
[1645871946912,0.46919749,38997.0,38996.0,0.377271]
[1645871947112,0.46919749,38997.0,38995.0,0.128308]
[1645871947519,0.144153,38997.0,38996.0,0.677271]
[1645871947715,0.144153,38997.0,38996.0,0.4383545]
[1645871948115,0.144153,38997.0,38984.0,0.377285]
[1645871948314,0.144153,38997.0,38984.0,0.427285]
[1645871948514,0.1,39002.0,38984.0,0.427285]
[1645871948515,0.1283023,39004.0,38995.0,0.00030408]
[1645871948716,0.1283023,39004.0,38995.0,0.03879408]
[1645871949016,0.064153,38997.0,38995.0,0.00030408]
[1645871949416,0.064153,38997.0,38988.0,0.1161]
[1645871949616,0.064153,38997.0,38989.0,0.377285]
[1645871949819,0.064153,38997.0,38994.0,0.377285]
[1645871950869,0.066153,38997.0,38994.0,0.377285]
[1645871951268,0.066153,38997.0,38994.0,0.479927]
[1645871951467,0.066153,38997.0,38990.0,0.1283]
[1645871951669,0.066153,38997.0,38991.0,0.377285]
[1645871951867,0.066153,38997.0,38991.0,0.44143601]
[1645871952068,0.00030406,38995.0,38991.0,0.06415101]
[1645871952267,0.06265779,38997.0,38993.0,0.038492]
[1645871952868,0.06365779,38997.0,38993.0,0.038492]
[1645871953069,0.06365779,38997.0,38990.0,0.1283]
[1645871953468,0.06365779,38997.0,38991.0,0.064155]
[1645871954109,0.06265779,38997.0,38991.0,0.064155]
[1645871954713,0.06265779,38997.0,38990.0,0.064158]
[1645871954912,0.06365779,38997.0,38990.0,0.064158]
[1645871955813,0.06384069,38997.0,38991.0,0.064155]
[1645871956314,0.06284069,38997.0,38991.0,0.064155]
[1645871956713,0.06265779,38997.0,38991.0,0.064155]
[1645871956914,0.06296184,38997.0,38991.0,0.065155]
[1645871957115,0.06296184,38997.0,38992.0,0.038493]
[1645871957315,0.06296184,38997.0,38992.0,0.102639]
[1645871957516,0.06296184,38997.0,38993.0,0.1767842]
[1645871957763,0.06265779,38997.0,38993.0,0.1767842]
[1645871958163,0.06296185,38997.0,38993.0,0.2152722]
[1645871958563,0.06296185,38997.0,38994.0,0.064151]
[1645871958963,0.06465779,38997.0,38994.0,0.064151]
[1645871959363,0.06496185,38997.0,38994.0,0.064151]
[1645871959563,0.06496185,38997.0,38994.0,0.102642]
[1645871960266,0.06265779,38997.0,38994.0,0.102642]
[1645871960471,0.06296185,38997.0,38994.0,0.102642]
[1645871960964,0.06496185,38997.0,38994.0,0.102642]
[1645871961407,0.06465779,38997.0,38994.0,0.102642]
[1645871961607,0.06496185,38997.0,38994.0,0.102642]
[1645871962109,0.06496185,38997.0,38995.0,0.06415]
[1645871962709,0.06465779,38997.0,38995.0,0.06415]
[1645871962909,0.06665779,38997.0,38995.0,0.06415]
[1645871963715,0.3,38996.0,38992.0,0.064154]
[1645871964010,0.38919362,38995.0,38988.0,0.11640413]
[1645871964211,0.3,38994.0,38989.0,0.377285]
[1645871964410,0.32503762,38994.0,38988.0,0.11640413]
[1645871964611,0.32503762,38994.0,38988.0,0.00030413]
[1645871965012,0.32703762,38994.0,38985.0,0.20725892]
[1645871965268,0.32703762,38994.0,38988.0,0.44173663]
[1645871965269,0.064159,38993.0,38988.0,0.44173663]
[1645871965468,0.064159,38993.0,38988.0,0.06445163]
[1645871966069,0.064159,38993.0,38988.0,0.00029263]
[1645871966270,0.064159,38993.0,38986.0,0.19247412]
[1645871966470,0.3,38992.0,38988.0,0.038496]
[1645871966670,0.064166,38990.0,38985.0,0.377285]
[1645871966870,0.364166,38990.0,38986.0,0.377285]
[1645871967072,0.364166,38990.0,38983.0,0.1198]
[1645871967271,0.32503762,38989.0,38983.0,0.1198]
[1645871967476,0.62503762,38990.0,38983.0,0.1198]
[1645871967873,0.32503762,38990.0,38983.0,0.1198]
[1645871968073,0.064172,38988.0,38983.0,0.1198]
[1645871968473,0.064172,38988.0,38979.0,0.3373]
[1645871968474,0.377285,38987.0,38979.0,0.2186]
[1645871968675,0.3514,38988.0,38976.0,0.12955]
[1645871968918,0.3524,38988.0,38984.0,0.00030407]
[1645871969114,0.06418,38985.0,38984.0,0.00030407]
[1645871969615,0.36418,38985.0,38984.0,0.00030407]
[1645871969814,0.36418,38985.0,38978.0,0.00121645]
[1645871970015,0.36418,38985.0,38983.0,0.00030407]
[1645871970514,0.06418,38985.0,38983.0,0.00030407]
[1645871970920,0.0514,38988.0,38983.0,0.00030407]
[1645871971115,0.0514,38988.0,38976.0,0.12955]
[1645871971317,0.0514,38988.0,38982.0,0.00029654]
[1645871971318,0.3,38987.0,38982.0,0.00029654]
[1645871971517,0.0514,38988.0,38982.0,0.00029654]
[1645871971717,0.3,38987.0,38982.0,0.00029654]
[1645871971916,0.05,38989.0,38982.0,0.00567468]
[1645871972115,0.0514,38988.0,38982.0,0.00567468]
[1645871972316,0.0514,38988.0,38982.0,0.00537814]
[1645871972516,0.0514,38988.0,38984.0,0.00029654]
[1645871972767,0.115575,38988.0,38984.0,0.00567468]
[1645871972969,0.167575,38988.0,38984.0,0.00567468]
[1645871973165,0.167575,38988.0,38984.0,7.468e-05]
[1645871973367,0.1,38986.0,38978.0,0.00118634]
[1645871973575,0.1,38986.0,38972.0,0.3]
[1645871973576,0.1,38984.0,38972.0,0.3]
[1645871973768,0.1,38984.0,38971.0,0.01]
[1645871973769,0.778685,38983.0,38971.0,0.01]
[1645871973966,0.05,38982.0,38971.0,0.01]
[1645871974267,0.377285,38980.0,38971.0,0.01]
[1645871974465,0.0514,38979.0,38968.0,0.22972907]
[1645871974668,0.3514,38979.0,38968.0,0.22972907]
[1645871974868,0.4014,38979.0,38968.0,0.22972907]
[1645871975065,0.4014,38979.0,38971.0,0.001]
[1645871975266,0.1014,38979.0,38971.0,0.001]
[1645871975566,0.4014,38979.0,38971.0,0.001]
[1645871976414,0.4014,38979.0,38968.0,0.22972907]
[1645871976813,0.064194,38976.0,38968.0,0.22972907]
[1645871977111,0.4264,38979.0,38968.0,0.22972907]
[1645871977112,0.0514,38975.0,38968.0,0.22972907]
[1645871977311,0.0514,38975.0,38970.0,0.00028061]
[1645871977512,0.0514,38975.0,38974.0,0.19903784]
[1645871977812,0.0514,38975.0,38970.0,0.00028061]
[1645871978414,0.0514,38975.0,38965.0,0.1173]
[1645871978614,0.0514,38975.0,38971.0,0.00028571]
[1645871979015,0.05132728,38975.0,38971.0,0.00028571]
[1645871979416,0.05132728,38975.0,38971.0,0.17754511]
[1645871979616,0.05132728,38975.0,38971.0,0.1772594]
[1645871979818,0.05132728,38975.0,38971.0,0.17754511]
[1645871980461,0.05121962,38975.0,38971.0,0.17754511]
[1645871980657,0.05121962,38975.0,38971.0,0.1772594]
[1645871980858,0.05121962,38975.0,38971.0,0.17754511]
[1645871981858,0.05121962,38975.0,38971.0,0.1772594]
[1645871982259,0.05121962,38975.0,38971.0,0.17754071]
[1645871983061,0.05121962,38975.0,38971.0,0.1772594]
[1645871983263,0.05121962,38975.0,38971.0,0.17754071]
[1645871983763,0.03485319,38975.0,38971.0,0.17754071]
[1645871984431,0.03485319,38975.0,38971.0,0.1772594]
[1645871984627,0.03485319,38975.0,38971.0,0.17754071]
[1645871985028,0.03885319,38975.0,38971.0,0.17754071]
[1645871985528,0.03885319,38975.0,38971.0,0.1772594]
[1645871985828,0.03885319,38975.0,38971.0,0.17754101]
[1645871986233,0.03485319,38975.0,38971.0,0.17754101]
[1645871986829,0.03485319,38975.0,38971.0,0.1772594]
[1645871987029,0.03485319,38975.0,38971.0,0.17754101]
[1645871987968,0.03485319,38975.0,38971.0,0.1772594]
[1645871988164,0.03485319,38975.0,38971.0,0.17754101]
[1645871989170,0.03485319,38975.0,38971.0,0.1772594]
[1645871989366,0.03485319,38975.0,38971.0,0.17754099]
[1645871990368,0.03485319,38975.0,38971.0,0.1772594]
[1645871990569,0.03485319,38975.0,38971.0,0.17754099]
[1645871990968,0.03685319,38975.0,38971.0,0.17754099]
[1645871991464,0.03685319,38975.0,38971.0,0.1772594]
[1645871991660,0.03685319,38975.0,38971.0,0.17754099]
[1645871992062,0.03685319,38975.0,38971.0,0.00028159]
[1645871992261,0.377285,38973.0,38971.0,0.00028159]
[1645871992460,0.428685,38973.0,38971.0,0.00028159]
[1645871992660,0.428685,38973.0,38965.0,0.1173]
[1645871992861,0.0514,38973.0,38970.0,0.00028159]
[1645871993061,0.0534,38973.0,38970.0,0.00028159]
[1645871993864,0.0534,38973.0,38965.0,0.1173]
[1645871994064,0.0534,38973.0,38970.0,0.00028159]
[1645871994265,0.1034,38973.0,38970.0,0.00028159]
[1645871994469,0.1014,38973.0,38970.0,0.00028159]
[1645871995064,0.1034,38973.0,38965.0,0.1173]
[1645871995265,0.1034,38973.0,38970.0,0.00028159]
[1645871996264,0.1014,38973.0,38965.0,0.1173]
[1645871996464,0.1014,38973.0,38970.0,0.00028159]
[1645871997169,0.1034,38973.0,38970.0,0.00028159]
[1645871997365,0.677285,38972.0,38970.0,0.00028159]
[1645871997565,0.3,38972.0,38965.0,0.1173]
[1645871998765,0.1014,38973.0,38965.0,0.1173]
[1645871999022,0.001,38972.0,38965.0,0.1173]
[1645871999725,0.0524,38972.0,38965.0,0.1173]
[1645872000123,0.0524,38972.0,38971.0,6.395e-05]
[1645872000322,0.3514,38972.0,38971.0,6.395e-05]
[1645872000723,0.3514,38972.0,38963.0,0.17306782]
[1645872000924,0.4014,38972.0,38963.0,0.17306782]
[1645872001224,0.4024,38972.0,38963.0,0.17306782]
[1645872001823,0.1024,38972.0,38964.0,0.377285]
[1645872002025,0.1024,38972.0,38963.0,0.17306782]
[1645872002229,0.0524,38972.0,38971.0,0.17644357]
[1645872002425,0.001,38972.0,38971.0,0.17644357]
[1645872002661,0.001,38972.0,38959.0,0.08248435]
[1645872002867,0.001,38972.0,38951.0,0.21588842]
[1645872002868,0.1,38965.0,38951.0,0.21588842]
[1645872003064,0.377509,38969.0,38951.0,0.21588842]
[1645872003065,0.377509,38955.0,38951.0,0.051]
[1645872003262,0.377509,38953.0,38951.0,0.001]
[1645872003462,0.377509,38953.0,38950.0,0.001]
[1645872003463,0.00928999,38948.0,38946.0,0.65411874]
[1645872003668,0.63467404,38947.0,38946.0,0.44411874]
[1645872003863,0.93467404,38947.0,38946.0,0.44411874]
[1645872004069,0.907402,38947.0,38946.0,0.44411874]
[1645872004263,0.907402,38947.0,38941.0,0.5494]
[1645872004264,0.75,38946.0,38941.0,0.011]
[1645872004463,0.3514,38945.0,38941.0,0.011]
[1645872004665,0.377509,38944.0,38941.0,0.011]
[1645872004868,0.3514,38943.0,38941.0,0.011]
[1645872005063,0.0514,38942.0,38941.0,0.01130394]
[1645872006063,0.0514,38942.0,38941.0,0.011]
[1645872007721,0.02820927,38942.0,38941.0,0.011]
[1645872009923,0.40571827,38942.0,38941.0,0.011]
[1645872010175,0.40571827,38942.0,38941.0,0.01458835]
[1645872010367,0.07820927,38942.0,38941.0,0.01458835]
[1645872010567,0.07820927,38942.0,38941.0,0.02458835]
[1645872011567,0.45571827,38942.0,38941.0,0.02458835]
[1645872015022,0.45571827,38942.0,38941.0,0.02274029]
[1645872015223,0.45671827,38942.0,38941.0,0.02274029]
[1645872015624,0.01588696,38940.0,38798.0,0.009095]
[1645872015923,0.01588696,38940.0,38934.0,0.00121088]
[1645872016523,0.01588696,38940.0,38934.0,0.00483203]
[1645872016924,0.01588696,38940.0,38934.0,0.00362115]
[1645872017124,0.01588696,38940.0,38934.0,0.00462115]
[1645872017776,0.01571488,38940.0,38934.0,0.00462115]
[1645872018170,0.01571488,38940.0,38935.0,0.00030269]
[1645872018372,0.01571488,38940.0,38935.0,0.00392384]
[1645872019171,0.01571488,38940.0,38935.0,0.00362115]
[1645872019372,0.01571488,38940.0,38936.0,0.00030269]
[1645872019573,0.01571488,38940.0,38936.0,0.00392384]
[1645872020373,0.01571488,38940.0,38936.0,0.00362115]
[1645872020579,0.01571488,38940.0,38936.0,0.00392384]
[1645872021173,0.01571488,38940.0,38939.0,0.18837483]
[1645872021418,0.39322388,38940.0,38939.0,0.191996]
[1645872021718,0.44322388,38940.0,38939.0,0.00362119]
[1645872022517,0.06571488,38940.0,38924.0,1.18207082]
[1645872022717,0.01571488,38940.0,38930.0,0.377509]
[1645872022919,0.01571488,38940.0,38938.0,0.23705294]
[1645872023124,0.377509,38939.0,38938.0,0.23705294]
[1645872023320,0.01571488,38940.0,38938.0,0.23705294]
[1645872023521,0.377509,38939.0,38938.0,0.23705294]
[1645872023722,0.377509,38939.0,38929.0,0.19896]
[1645872023924,0.01571488,38940.0,38929.0,0.01326]
[1645872023925,0.3,38938.0,38929.0,0.01326]
[1645872024123,0.07996788,38940.0,38929.0,0.01326]
[1645872024323,0.00018457,38936.0,38929.0,0.01126]
[1645872024924,0.00018457,38936.0,38934.0,0.17642217]
[1645872025162,0.13148977,38940.0,38934.0,0.17642217]
[1645872025363,0.00018457,38937.0,38934.0,0.17642217]
[1645872026365,0.13148977,38940.0,38934.0,0.17642217]
[1645872026865,0.00030266,38937.0,38934.0,0.17642217]
[1645872027565,0.13148977,38940.0,38934.0,0.17642217]
[1645872027966,0.00030266,38937.0,38934.0,0.17642217]
[1645872028767,0.01723677,38940.0,38934.0,0.17642217]
[1645872029220,0.00030266,38937.0,38934.0,0.17642217]
[1645872029418,0.00030266,38937.0,38935.0,0.68777207]
[1645872029826,0.00030266,38937.0,38936.0,0.377509]
[1645872029827,0.00212794,38937.0,38936.0,0.377509]
[1645872030019,0.00182528,38937.0,38936.0,0.377509]
[1645872030220,0.00182528,38937.0,38935.0,0.68777207]
[1645872030419,0.00182528,38937.0,38936.0,0.377509]
[1645872030619,0.00182528,38937.0,38935.0,0.68777207]
[1645872030820,0.00182528,38937.0,38936.0,0.377509]
[1645872031023,0.00182528,38937.0,38936.0,0.379509]
[1645872031826,0.00182528,38937.0,38936.0,0.67519211]
[1645872032221,0.00115521,38937.0,38936.0,0.67519211]
[1645872032422,0.01571488,38940.0,38936.0,0.69893211]
[1645872032666,0.00029632,38938.0,38937.0,0.377509]
[1645872033069,0.00029632,38938.0,38937.0,0.67463899]
[1645872033267,0.01384003,38940.0,38937.0,0.67463899]
[1645872033467,0.01384003,38940.0,38937.0,0.88886399]
[1645872033866,0.01384003,38940.0,38937.0,1.69970399]
[1645872034270,0.00928999,38948.0,38938.0,1.27714]
[1645872034469,0.00928999,38948.0,38939.0,0.70013388]
[1645872034670,0.00928999,38948.0,38940.0,0.0514]
[1645872034870,0.00928999,38948.0,38941.0,0.377509]
[1645872035369,0.00028144,38945.0,38941.0,0.377509]
[1645872035669,0.00028144,38945.0,38943.0,0.377509]
[1645872036069,0.00928999,38948.0,38943.0,0.377509]
[1645872036273,0.00028143,38946.0,38943.0,0.377509]
[1645872037118,0.00028143,38946.0,38943.0,0.380509]
[1645872037318,0.00928999,38948.0,38943.0,0.380509]
[1645872037520,0.00028143,38946.0,38943.0,0.380509]
[1645872037919,0.00866992,38948.0,38944.0,1.2]
[1645872039120,0.00866992,38948.0,38945.0,0.377509]
[1645872039521,0.00866992,38948.0,38945.0,0.67426685]
[1645872039721,0.00866992,38948.0,38946.0,0.0514]
[1645872039921,0.00866992,38948.0,38947.0,0.677509]
[1645872040186,0.00885427,38948.0,38947.0,0.728909]
[1645872040980,0.00866992,38948.0,38947.0,0.728909]
[1645872043583,0.00866992,38948.0,38947.0,0.0514]
[1645872043784,0.00866992,38948.0,38947.0,0.428909]
[1645872045916,0.00866992,38948.0,38947.0,0.377509]
[1645872047117,0.00966992,38948.0,38947.0,0.377509]
[1645872047317,0.00966992,38948.0,38947.0,0.387509]
[1645872048970,0.00866992,38948.0,38947.0,0.387509]
[1645872049171,0.00866992,38948.0,38947.0,0.389509]
[1645872050470,0.00866992,38948.0,38947.0,0.387509]
[1645872051416,0.00966992,38948.0,38947.0,0.387509]
[1645872052413,0.00866992,38948.0,38947.0,0.387509]
[1645872053215,0.00866992,38948.0,38947.0,0.389509]
[1645872054417,0.00866992,38948.0,38947.0,0.387509]
[1645872055268,0.00866992,38948.0,38947.0,0.389509]
[1645872056073,0.00866992,38948.0,38947.0,0.012]
[1645872056274,0.00866992,38948.0,38947.0,0.389509]
[1645872056475,0.00866992,38948.0,38947.0,0.387509]
[1645872057073,0.00866992,38948.0,38947.0,0.389509]
[1645872057475,0.00866992,38948.0,38947.0,0.38930173]
[1645872057875,0.00866992,38948.0,38947.0,0.38919566]
[1645872058475,0.00866992,38948.0,38947.0,0.38719566]
[1645872059121,0.00966992,38948.0,38947.0,0.38719566]
[1645872060322,0.00866992,38948.0,38947.0,0.38719566]
[1645872061123,0.00966992,38948.0,38947.0,0.38719566]
[1645872061329,0.00966992,38948.0,38947.0,0.68719566]
[1645872061625,0.00966992,38948.0,38947.0,0.38719566]
[1645872062527,0.00866992,38948.0,38947.0,0.38719566]
[1645872063964,0.00866992,38948.0,38947.0,0.68719566]
[1645872064367,0.00866992,38948.0,38947.0,0.377601]
[1645872064566,0.00866992,38948.0,38947.0,0.3776]
[1645872067215,0.00866992,38948.0,38947.0,0.3806]
[1645872068114,0.00866992,38948.0,38947.0,0.38302476]
[1645872068315,0.00866992,38948.0,38947.0,0.38002476]
[1645872071368,0.00866992,38948.0,38947.0,0.39002476]
[1645872072670,0.00866992,38948.0,38947.0,0.39002478]
[1645872073268,0.00866992,38948.0,38947.0,0.39302478]
[1645872075021,0.00866992,38948.0,38947.0,0.39002478]
[1645872075321,0.00866992,38948.0,38947.0,0.39302478]
[1645872076521,0.00866992,38948.0,38947.0,0.39002478]
[1645872077121,0.00866992,38948.0,38947.0,0.39302478]
[1645872077322,0.00866992,38948.0,38947.0,0.3930248]
[1645872077522,0.00866992,38948.0,38947.0,0.3288878]
[1645872078370,0.00866992,38948.0,38947.0,0.3258878]
[1645872079166,0.00966992,38948.0,38947.0,0.3258878]
[1645872080369,0.00866992,38948.0,38947.0,0.3258878]
[1645872081073,0.00866992,38948.0,38947.0,0.3253178]
[1645872085167,0.00849788,38948.0,38947.0,0.3283178]
[1645872085367,0.225206,38948.0,38947.0,0.3283178]
[1645872086568,0.225206,38948.0,38947.0,0.3253178]
[1645872086769,0.225206,38948.0,38947.0,0.32531782]
[1645872087168,0.225206,38948.0,38947.0,0.32831782]
[1645872087968,0.00849788,38948.0,38947.0,0.32831782]
[1645872088568,0.00849788,38948.0,38947.0,0.32531782]
[1645872092770,0.225206,38948.0,38947.0,0.32531782]
[1645872093170,0.226206,38948.0,38947.0,0.32531782]
[1645872094374,0.226206,38948.0,38947.0,0.14992478]
[1645872094573,0.225206,38948.0,38947.0,0.14992478]
[1645872095274,0.225206,38948.0,38947.0,0.15392478]
[1645872095675,0.00849788,38948.0,38947.0,0.15392478]
[1645872096518,0.00849788,38948.0,38947.0,0.14992478]
[1645872097320,0.00849788,38948.0,38947.0,0.15292478]
[1645872097518,0.20852889,38951.0,38949.0,1.2]
[1645872097720,0.16865372,38954.0,38950.0,0.62467309]
[1645872097917,0.38926,38965.0,38952.0,0.8851]
[1645872097918,0.49337451,38960.0,38952.0,0.8851]
[1645872098116,0.32472079,38962.0,38955.0,0.1]
[1645872098318,0.32472079,38962.0,38961.0,0.21083708]
[1645872098518,0.55537942,38963.0,38961.0,0.4037019]
[1645872098718,0.37916242,38964.0,38962.0,0.137432]
[1645872098920,0.70453097,38964.0,38962.0,0.13985682]
[1645872099122,0.32536855,38964.0,38962.0,0.07786663]
[1645872101180,0.002,38964.0,38962.0,0.07786663]
[1645872101580,0.002,38964.0,38963.0,0.3]
[1645872101784,0.002,38964.0,38963.0,0.1928528]
[1645872101981,0.002,38964.0,38963.0,0.19285278]
[1645872102280,0.29770582,38966.0,38964.0,1.25999077]
[1645872102480,0.00027927,38965.0,38964.0,1.02786678]
[1645872102679,0.00027927,38965.0,38964.0,1.02786674]
[1645872102879,0.00027927,38965.0,38964.0,1.01786674]
[1645872103080,0.00027927,38965.0,38964.0,1.01786672]
[1645872103279,0.37916242,38969.0,38964.0,1.01886672]
[1645872103481,0.00027926,38966.0,38964.0,1.01886672]
[1645872103681,0.00027926,38966.0,38964.0,1.0188667]
[1645872103917,0.00027926,38966.0,38964.0,1.01886668]
[1645872104322,0.00027926,38966.0,38964.0,1.01886666]
[1645872104519,0.37916242,38969.0,38964.0,1.01786666]
[1645872104720,0.00027926,38967.0,38964.0,1.01786664]
[1645872105121,0.00027926,38967.0,38964.0,1.01786662]
[1645872105320,0.00027926,38967.0,38964.0,1.01886662]
[1645872105521,0.00027926,38967.0,38964.0,1.0134149]
[1645872105721,0.37916242,38970.0,38964.0,1.0134149]
[1645872105920,0.00027926,38967.0,38964.0,1.0134149]
[1645872106120,0.00027926,38967.0,38964.0,1.01341488]
[1645872106521,0.00027926,38967.0,38964.0,1.01241486]
[1645872106722,0.00027926,38967.0,38964.0,1.01241484]
[1645872107025,0.37916242,38968.0,38964.0,0.07786652]
[1645872107220,0.00128086,38967.0,38964.0,0.07786652]
[1645872107872,0.005,38965.0,38964.0,0.00242452]
[1645872108079,0.382571,38965.0,38964.0,0.00242452]
[1645872108275,0.82339342,38965.0,38964.0,0.00242452]
[1645872108484,0.82339342,38965.0,38964.0,0.00061426]
[1645872108485,1.22466345,38965.0,38964.0,0.00061426]
[1645872108675,1.22466345,38965.0,38951.0,0.3]
[1645872108676,1.2,38964.0,38951.0,0.3]
[1645872108874,0.21683486,38953.0,38948.0,0.01]
[1645872109275,0.21683486,38953.0,38949.0,0.26599]
[1645872109475,0.005,38952.0,38948.0,0.01]
[1645872109679,0.22211577,38952.0,38949.0,0.26599]
[1645872110077,0.00528091,38952.0,38949.0,0.26599]
[1645872110477,0.21683486,38953.0,38949.0,0.26599]
[1645872110877,0.0002808,38952.0,38949.0,0.26599]